[Event "POL-chT 2nd League-4 2020"]
[Site "Poronin"]
[Date "2020.09.13"]
[Round "9.6"]
[White "Czaplewska, Klara"]
[Black "Dabrowska, Aleksandra"]
[Result "1/2-1/2"]
[ECO "A45"]
[WhiteElo "1875"]
[BlackElo "1566"]
[Annotator "NA"]
[PlyCount "37"]
[EventDate "2020.09.05"]
[EventType "team-tourn"]
[EventCountry "POL"]
[SourceTitle "playchess.com"]
[Source "ChessBase"]
[SourceQuality "1"]
[TimeControl "40/5400+30:900+30"]

1. d4 {[%emt 0:00:00]} Nf6 {[%emt 0:00:00]} 2. g3 {[%emt 0:00:00]} g6 {[%emt 0:00:00]} 3. Bg2 {[%emt 0:00:00]} Bg7 {[%emt 0:00:00]} 4. e4 {[%emt 0:00:07]} d6 {[%emt 0:00:00]} 5. Ne2 {[%emt 0:00:26]} O-O {[%emt 0:00:24]} 6. Nbc3 {[%emt 0:00:24]} a6 {[%emt 0:01:38]} 7. h3 {[%emt 0:01:55]} e5 {[%emt 0:00:47]} 8. Be3 {[%emt 0:01:15]} Nbd7 {[%emt 0:04:22]} 9. O-O {[%emt 0:00:53]} Re8 {[%emt 0:04:38]} 10. f4 {[%emt 0:06:11]} exd4 {[%emt 0:01:45]} 11. Bxd4 {[%emt 0:01:28]} ({Much weaker is} 11. Nxd4 Nxe4 12. Nxe4 (12. Bxe4 d5 $15) 12... d5 $11) 11... Qe7 {[%emt 0:03:17]} 12. g4 {[%emt 0:07:49]} h6 {[%emt 0:04:02]} 13. Ng3 {[%emt 0:01:26]} Nh7 {[%emt 0:11:05]} 14. Bxg7 {[%emt 0:01:00]} Kxg7 {[%emt 0:00:23]} 15. Qd4+ $16 {[%emt 0:01:16]} Kg8 {[%emt 0:02:34]} 16. Rad1 {[%emt 0:01:13]} Ndf6 {[%emt 0:02:30]} 17. Nd5 {[%emt 0:00:55]} Nxd5 {[%emt 0:00:53]} 18. exd5 {[%emt 0:00:30]} Qe3+ {[%emt 0:05:47]} 19. Qxe3 {[%emt 0:00:12]} 1/2-1/2

[Event "POL-chT 2nd League-4 2020"]
[Site "Poronin"]
[Date "2020.09.13"]
[Round "9.11"]
[White "Szajda, Marcin"]
[Black "Rainer, Piotr"]
[Result "1-0"]
[ECO "B32"]
[WhiteElo "1942"]
[BlackElo "1641"]
[Annotator "NA"]
[PlyCount "89"]
[EventDate "2020.09.05"]
[EventType "team-tourn"]
[EventCountry "POL"]
[SourceTitle "playchess.com"]
[Source "ChessBase"]
[SourceQuality "1"]
[TimeControl "40/5400+30:900+30"]

1. e4 {[%emt 0:06:30]} c5 {[%emt 0:00:00]} 2. Nf3 {[%emt 0:00:08]} Nc6 {[%emt 0:00:29]} 3. d4 {[%emt 0:00:06]} cxd4 {[%emt 0:00:16]} 4. Nxd4 {[%emt 0:00:07]} e5 {[%emt 0:00:10]} 5. Nb5 {[%emt 0:00:29]} d6 {[%emt 0:01:48]} 6. c4 {[%emt 0:03:04]} Be7 {[%emt 0:02:44]} 7. N1c3 {[%emt 0:00:52]} a6 {[%emt 0:02:56]} 8. Na3 {[%emt 0:00:39]} Nf6 {[%emt 0:01:48]} 9. Nc2 {[%emt 0:01:47]} O-O {[%emt 0:02:45]} 10. Be2 {[%emt 0:00:51]} Ne8 {[%emt 0:06:19]} 11. O-O {[%emt 0:06:42]} Bg5 {[%emt 0:05:58]} 12. b3 {[%emt 0:10:01]} Bxc1 {[%emt 0:05:38]} 13. Qxc1 {[%emt 0:00:27]} Qh4 {[%emt 0:01:26]} 14. f4 {[%emt 0:16:05]} f5 $16 {[%emt 0:10:36]} 15. g3 {[%emt 0:07:27]} Qh6 {[%emt 0:07:59]} 16. Qe3 {[%emt 0:05:45]} fxe4 {[%emt 0:04:05]} 17. fxe5 {[%emt 0:05:06]} Qxe3+ {[%emt 0:04:54]} 18. Nxe3 {[%emt 0:00:05]} Rxf1+ {[%emt 0:00:08]} 19. Rxf1 {[%emt 0:02:37]} Bh3 {[%emt 0:01:08]} 20. Rd1 {[%emt 0:03:56]} dxe5 {[%emt 0:02:42]} 21. Nxe4 {[%emt 0:00:28]} Nd4 {[%emt 0:01:36]} 22. Bg4 {[%emt 0:02:02]} Nc2 {[%emt 0:09:41]} 23. Bxh3 {[%emt 0:04:48]} Nxe3 {[%emt 0:00:05]} 24. Be6+ {[%emt 0:02:58]} Kh8 {[%emt 0:00:17]} 25. Rd3 {[%emt 0:05:54]} Nc2 {[%emt 0:05:10]} 26. Rd7 {[%emt 0:01:49]} b5 {[%emt 0:01:21]} 27. c5 {[%emt 0:04:09]} Nd4 {[%emt 0:02:57]} 28. Bd5 {[%emt 0:00:29]} Rc8 {[%emt 0:03:43]} 29. Bb7 {[%emt 0:01:30]} Rb8 {[%emt 0:00:07]} 30. c6 {[%emt 0:03:58]} Ne6 {[%emt 0:04:29]} 31. Nd6 {[%emt 0:00:26]} Nc5 {[%emt 0:06:08]} 32. Nxe8 {[%emt 0:02:58]} Rxe8 {[%emt 0:00:06]} 33. Rd5 {[%emt 0:00:57]} Ne6 {[%emt 0:04:55]} 34. Rxe5 {[%emt 0:00:07]} Kg8 {[%emt 0:01:02]} 35. Rxe6 {[%emt 0:00:17]} Rxe6 {[%emt 0:01:12]} 36. c7 {[%emt 0:00:03]} Re1+ {[%emt 0:00:14]} 37. Kf2 {[%emt 0:00:06]} Rc1 {[%emt 0:00:04]} 38. c8=Q+ {[%emt 0:00:04]} Rxc8 {[%emt 0:00:06]} 39. Bxc8 {[%emt 0:00:02]} a5 {[%emt 0:00:09]} 40. Ke3 {[%emt 0:00:00]} Kf7 {[%emt 0:00:00]} 41. Kd4 {[%emt 0:00:22]} a4 {[%emt 0:00:57]} 42. b4 {[%emt 0:00:17]} Ke7 {[%emt 0:00:27]} 43. Ba6 {[%emt 0:00:05]} Kd6 {[%emt 0:00:08]} 44. Bxb5 {[%emt 0:00:05]} Kc7 {[%emt 0:00:17]} 45. Bxa4 {[%emt 0:00:04]} 1-0

[Event "POL-chT 2nd League-4 2020"]
[Site "Poronin"]
[Date "2020.09.13"]
[Round "9.12"]
[White "Gaczol, Julia"]
[Black "Chmiel, Dominika"]
[Result "0-1"]
[ECO "C45"]
[WhiteElo "1330"]
[BlackElo "2023"]
[Annotator "NA RC"]
[PlyCount "170"]
[EventDate "2020.09.05"]
[EventType "team-tourn"]
[EventCountry "POL"]
[SourceTitle "playchess.com"]
[Source "ChessBase"]
[SourceQuality "1"]
[TimeControl "40/5400+30:900+30"]

1. e4 e5 2. Nf3 Nc6 3. d4 exd4 4. Nxd4 Bc5 5. Nb3 Bb6 6. Nc3 d6 7. Qe2 h6 {C45: Scotch Game.} 8. Be3 Nf6 9. O-O-O Be6 10. f3 Qe7 11. Kb1 O-O-O {[#]} 12. g3 $146 ({Predecessor:} 12. Bxb6 axb6 13. Qb5 Bxb3 14. axb3 Qe5 15. Bc4 Qxb5 16. Nxb5 Ne5 17. Nd4 Nxc4 18. bxc4 {½-½ (41) Doan,V (2141)-Dang,H Bac Giang 2020}) 12... Kb8 13. Bg2 Bxe3 14. Qxe3 Bxb3 15. cxb3 d5 $1 16. Ne2 dxe4 17. fxe4 Ng4 18. Qf4 Nge5 (18... Rxd1+ $17 19. Rxd1 Rd8) 19. Rhf1 Rxd1+ 20. Rxd1 Rd8 21. Rxd8+ Qxd8 22. Qc1 Qd3+ 23. Qc2 Qe3 24. a3 Nd3 25. Qd1 a6 26. Kc2 Nc5 27. b4 Qb3+ 28. Kc1 Qe3+ 29. Kc2 Nxe4 30. Qd3 Qxd3+ 31. Kxd3 Nf2+ 32. Kd2 Ne5 33. h3 Nc4+ 34. Kc3 Ne3 35. Bf3 Nf5 36. Kd2 Nd6 37. h4 Nfe4+ 38. Ke3 Nf6 39. b3 c6 40. Nd4 Kc7 41. Kf4 Kd7 42. g4 Ke7 43. Bg2 Nfe8 44. Bf3 Nc7 45. a4 Ne6+ 46. Nxe6 Kxe6 47. h5 g5+ 48. hxg6 fxg6 49. g5 hxg5+ 50. Kxg5 Nf7+ 51. Kf4 Kf6 52. Be4 Nd6 53. Bd3 g5+ 54. Kg4 Nf7 55. Kg3 Ke5 56. Kg4 Kd4 57. Be2 Kc3 58. b5 axb5 59. axb5 c5 60. b6 Kxb3 61. Bd1+ Kb4 62. Kf5 Kb5 63. Ke6 Nd8+ 64. Kd7 Nc6 65. Kc7 Na5 66. Bf3 Ka6 67. Be2+ c4 68. Bf3 g4 69. Bxg4 Kb5 70. Bd1 c3 71. Kd6 Kb4 72. Kd5 Ka3 73. Kd4 Kb2 74. Kd3 Nc6 75. Ba4 Nb4+ 76. Kc4 c2 77. Bxc2 Nxc2 78. Kc5 Na1 79. Kb4 Nb3 80. Kc4 Na5+ 81. Kb4 (81. Kb5 $11) 81... Nc6+ 82. Ka4 Kc3 83. Kb5 Kd4 84. Ka4 Kc5 85. Kb3 Kxb6 0-1

[Event "POL-chT 2nd League-4 2020"]
[Site "Poronin"]
[Date "2020.09.13"]
[Round "9.15"]
[White "Zawierucha, Aleksander"]
[Black "Ziemniak, Piotr"]
[Result "1-0"]
[ECO "A41"]
[WhiteElo "1899"]
[BlackElo "1741"]
[Annotator "NA"]
[PlyCount "53"]
[EventDate "2020.09.05"]
[EventType "team-tourn"]
[EventCountry "POL"]
[SourceTitle "playchess.com"]
[Source "ChessBase"]
[SourceQuality "1"]
[TimeControl "40/5400+30:900+30"]

1. d4 d6 2. Nf3 Nf6 3. c4 g6 4. Nc3 Bg7 5. e4 Nbd7 6. Be2 O-O 7. O-O e5 8. Be3 c6 9. Qd2 Re8 {E94: King's Indian: Classical: 6 Be2 e5 7 0-0: Various Black 7th moves.} 10. Rfe1 Qc7 {[#]} 11. Rad1 $146 ({Predecessor:} 11. d5 Nf8 12. Rac1 Ng4 13. Bd3 Nxe3 14. fxe3 Bg4 15. Qf2 Nd7 16. b4 Nf8 17. h3 {½-½ (34) Schroeder,L (1339)-Nguyen,P (1195) Willingen 2015}) 11... Nf8 12. h3 Bd7 13. dxe5 dxe5 {[#]} 14. Bc5 $1 Rad8 15. Qe3 b6 16. Bd6 Qc8 17. Nxe5 Be6 18. f4 N6d7 19. Nxd7 Bxd7 20. e5 $18 f6 21. Bf3 Ne6 22. Ne4 f5 23. Nf6+ Bxf6 24. exf6 Ng5 25. Be7 Nxf3+ 26. Qxf3 Kf7 27. Qd3 1-0

[Event "POL-chT 2nd League-4 2020"]
[Site "Poronin"]
[Date "2020.09.13"]
[Round "9.16"]
[White "Babiarz, Arkadiusz"]
[Black "Boruta, Dawid"]
[Result "1-0"]
[ECO "B10"]
[WhiteElo "1872"]
[BlackElo "1822"]
[Annotator "NA"]
[PlyCount "109"]
[EventDate "2020.09.05"]
[EventType "team-tourn"]
[EventCountry "POL"]
[SourceTitle "playchess.com"]
[Source "ChessBase"]
[SourceQuality "1"]
[TimeControl "40/5400+30:900+30"]

1. e4 {[%emt 0:00:00]} c6 {[%emt 0:00:00]} 2. c4 {[%emt 0:00:00]} d5 {[%emt 0:00:14]} 3. exd5 {[%emt 0:00:00]} cxd5 {[%emt 0:00:11]} 4. cxd5 {[%emt 0:00:00]} Nf6 {[%emt 0:00:45]} 5. Qa4+ {[%emt 0:00:09]} Nbd7 {[%emt 0:00:39]} 6. Nc3 {[%emt 0:00:15]} g6 {[%emt 0:03:47]} 7. Be2 {[%emt 0:00:13] 7.Bc4 is setting a new trend. B10: Caro-Kann: 2 d3 and 2 c4.} Bg7 {[%emt 0:01:10]} 8. d4 {[%emt 0:00:13]} O-O {[%emt 0:01:21]} 9. Bf3 {[%emt 0:00:16]} Nb6 {[%emt 0:17:28] Double Attack} 10. Qb3 {[%emt 0:00:28]} e6 {[%emt 0:06:49]} 11. dxe6 {[%emt 0:00:08]} Bxe6 {[%emt 0:00:07]} 12. Qd1 {[%emt 0:00:05] [#]} Qd7 $146 {[%emt 0:08:41]} ({Predecessor:} 12... Re8 13. Nge2 Qd7 14. O-O Nfd5 15. Ne4 Bf5 16. Nc5 Qe7 17. b3 Rac8 18. Ba3 Qc7 {1-0 (35) Babiarz,A (1831)-Lechman,G (1395) Szczyrk 2017}) 13. Nge2 {[%emt 0:01:47]} Bg4 {[%emt 0:05:16]} 14. Bxg4 {[%emt 0:01:14]} Qxg4 {[%emt 0:03:36]} 15. O-O {[%emt 0:01:16]} Nfd5 {[%emt 0:02:18]} 16. Nf4 {[%emt 0:01:35]} Qd7 {[%emt 0:01:41]} 17. Nfxd5 {[%emt 0:00:55]} Nxd5 {[%emt 0:00:04]} 18. Qf3 {[%emt 0:00:59]} Rfd8 {[%emt 0:07:05]} 19. Bg5 {[%emt 0:01:18]} f6 {[%emt 0:02:41]} 20. Bh4 {[%emt 0:04:15]} Nxc3 {[%emt 0:08:08]} 21. bxc3 {[%emt 0:00:16]} Qd5 {[%emt 0:02:29]} 22. Qxd5+ {[%emt 0:02:42]} Rxd5 {[%emt 0:00:03]} 23. Rfe1 {[%emt 0:02:28]} Kf7 {[%emt 0:00:27]} 24. Rab1 {[%emt 0:09:00]} b6 {[%emt 0:00:48]} 25. Bg3 {[%emt 0:01:24]} Rc8 $14 {[%emt 0:02:16]} 26. Rb3 {[%emt 0:01:36]} Ra5 {[%emt 0:02:57]} 27. Re2 {[%emt 0:02:20]} Bf8 {[%emt 0:03:25]} 28. f3 {[%emt 0:02:01]} Rc4 {[%emt 0:01:23]} 29. Be1 {[%emt 0:03:00]} Rca4 {[%emt 0:01:17]} 30. Rbb2 {[%emt 0:00:13]} Rc4 {[%emt 0:01:02]} 31. Kf2 {[%emt 0:01:49]} Bd6 {[%emt 0:02:57]} 32. Ke3 {[%emt 0:02:30]} b5 {[%emt 0:04:46]} 33. Kd3 {[%emt 0:00:33]} a6 {[%emt 0:00:21]} 34. g3 {[%emt 0:08:20]} Ra3 {[%emt 0:02:03]} 35. Rb3 {[%emt 0:00:14]} Ra5 {[%emt 0:01:04]} 36. Bf2 {[%emt 0:01:01]} Rca4 {[%emt 0:01:46]} 37. Rbb2 {[%emt 0:00:05]} Ra3 {[%emt 0:01:33]} 38. Ke4 {[%emt 0:13:20]} Ke6 {[%emt 0:01:05]} 39. d5+ {[%emt 0:01:13]} Kd7 {[%emt 0:01:11]} 40. Bd4 {[%emt 0:00:00]} f5+ {[%emt 0:00:00]} 41. Kd3 {[%emt 0:00:02]} R5a4 {[%emt 0:08:14]} 42. g4 {[%emt 0:10:48]} f4 {[%emt 0:00:34]} 43. h4 {[%emt 0:00:31]} b4 {[%emt 0:06:59]} 44. h5 {[%emt 0:10:09]} Kc7 {[%emt 0:04:46]} 45. hxg6 {[%emt 0:02:10]} hxg6 {[%emt 0:00:01]} 46. Rh2 {[%emt 0:03:53]} bxc3 {[%emt 0:00:09]} 47. Rh7+ {[%emt 0:00:05]} Kc8 {[%emt 0:00:05]} 48. Re2 {[%emt 0:00:35]} c2+ {[%emt 0:01:05]} 49. Kxc2 {[%emt 0:00:09]} Rxa2+ {[%emt 0:01:35]} 50. Bb2 {[%emt 0:00:05]} Bc7 {[%emt 0:01:01]} 51. Kb1 {[%emt 0:01:33]} Rxb2+ {[%emt 0:00:33]} 52. Kxb2 {[%emt 0:00:19]} Kd8 {[%emt 0:00:30]} 53. Ree7 {[%emt 0:02:07]} Bb6 {[%emt 0:00:31]} 54. Rb7 {[%emt 0:00:32]} Bd4+ {[%emt 0:00:09]} 55. Kb3 {[%emt 0:00:09]} 1-0

[Event "POL-chT 2nd League-4 2020"]
[Site "Poronin"]
[Date "2020.09.13"]
[Round "9.17"]
[White "Gonsior, Monika"]
[Black "Ziemniak, Grzegorz"]
[Result "1-0"]
[ECO "B01"]
[WhiteElo "2001"]
[BlackElo "1693"]
[Annotator "NA RC"]
[PlyCount "50"]
[EventDate "2020.09.05"]
[EventType "team-tourn"]
[EventCountry "POL"]
[SourceTitle "playchess.com"]
[Source "ChessBase"]
[SourceQuality "1"]
[TimeControl "40/5400+30:900+30"]

1. e4 {[%emt 0:00:00]} d5 {[%emt 0:00:00]} 2. exd5 {[%emt 0:00:00]} Qxd5 {[%emt 0:00:00]} 3. Nc3 {[%emt 0:00:00]} Qa5 {[%emt 0:00:00]} 4. Nf3 {[%emt 0:00:10]} Nf6 {[%emt 0:00:00]} 5. d3 {[%emt 0:00:21]} Bg4 {[%emt 0:00:14]} 6. Be2 {[%emt 0:00:10]} e6 {[%emt 0:00:16]} 7. O-O {[%emt 0:00:20]} Bd6 {[%emt 0:00:26]} 8. Ng5 {[%emt 0:05:49]} Qe5 {[%emt 0:14:57]} 9. f4 {[%emt 0:02:25]} Bxe2 {[%emt 0:01:49]} 10. fxe5 {[%emt 0:11:38]} Bxd1 {[%emt 0:00:20]} 11. exd6 {[%emt 0:00:14]} Bxc2 {[%emt 0:06:18]} 12. dxc7 {[%emt 0:00:17]} Na6 {[%emt 0:02:03]} 13. Bf4 {[%emt 0:01:44]} Bxd3 {[%emt 0:07:22]} 14. Rfd1 {[%emt 0:00:58]} Bc4 {[%emt 0:01:06]} 15. Rd8+ {[%emt 0:00:58]} Rxd8 {[%emt 0:00:30]} 16. cxd8=Q+ $18 {[%emt 0:00:11]} Kxd8 {[%emt 0:00:03]} 17. Nxf7+ {[%emt 0:00:05]} Ke7 {[%emt 0:01:31]} 18. Nxh8 {[%emt 0:00:25]} Kf8 {[%emt 0:00:32]} 19. Rd1 {[%emt 0:00:12]} Bd5 {[%emt 0:06:11]} 20. Nxd5 {[%emt 0:00:19]} Nxd5 {[%emt 0:00:12]} 21. Bd6+ {[%emt 0:00:20]} Kg8 {[%emt 0:00:36]} 22. Rf1 {[%emt 0:00:25]} Nf6 {[%emt 0:00:20]} 23. Rc1 {[%emt 0:00:05]} Kxh8 {[%emt 0:02:28]} 24. Rc8+ {[%emt 0:00:05]} Ng8 {[%emt 0:00:07]} 25. b4 {[%emt 0:00:07]} Nb8 1-0

[Event "POL-chT 2nd League-4 2020"]
[Site "Poronin"]
[Date "2020.09.13"]
[Round "9.18"]
[White "Polak, Sylwia"]
[Black "Swiech, Joanna"]
[Result "1/2-1/2"]
[ECO "D31"]
[WhiteElo "1590"]
[BlackElo "1910"]
[Annotator "NA"]
[PlyCount "118"]
[EventDate "2020.09.05"]
[EventType "team-tourn"]
[EventCountry "POL"]
[SourceTitle "playchess.com"]
[Source "ChessBase"]
[SourceQuality "1"]
[TimeControl "40/5400+30:900+30"]

1. d4 {[%emt 0:00:00]} d5 {[%emt 0:00:00]} 2. c4 {[%emt 0:00:00]} e6 {[%emt 0:00:00]} 3. Nc3 {[%emt 0:00:00]} Be7 {[%emt 0:00:00]} 4. Nf3 {[%emt 0:00:11]} Nf6 {[%emt 0:00:01]} 5. e3 {[%emt 0:00:05]} O-O {[%emt 0:00:15]} 6. Bd3 {[%emt 0:00:25]} b6 {[%emt 0:00:17]} 7. cxd5 {[%emt 0:02:42]} exd5 {[%emt 0:00:09]} 8. O-O {[%emt 0:00:09]} Bb7 {[%emt 0:01:37]} 9. Qc2 {[%emt 0:00:17]} h6 {[%emt 0:00:43] E14: Queen's Indian: Classical Variation (4 e3).} 10. Ne5 {[%emt 0:05:19]} Nbd7 {[%emt 0:02:37]} 11. f4 {[%emt 0:01:02]} c5 {[%emt 0:01:59]} 12. Bd2 {[%emt 0:01:46]} a6 {[%emt 0:05:18] [#]} 13. Be1 $146 {[%emt 0:01:58]} ({Predecessor:} 13. Rac1 c4 14. Be2 b5 15. Bf3 Nb6 16. Kh1 Nfd7 17. Bg4 Nb8 18. Qd1 Nc6 19. Qf3 {½-½ (42) Valenau,E-Patsourakis,A Rimavska Sobota 1996}) 13... Rc8 {[%emt 0:01:43]} 14. Bh4 {[%emt 0:03:29]} Rc7 {[%emt 0:02:11]} 15. Bf5 {[%emt 0:05:46]} Nxe5 {[%emt 0:06:50]} (15... b5 $11) 16. dxe5 {[%emt 0:02:57]} Ne8 {[%emt 0:01:19]} 17. Bxe7 {[%emt 0:00:20]} Rxe7 {[%emt 0:02:14]} 18. Rad1 {[%emt 0:01:01]} Nc7 {[%emt 0:14:55]} 19. Qd2 {[%emt 0:06:57]} Qa8 {[%emt 0:01:49]} 20. Bb1 {[%emt 0:06:59]} f5 {[%emt 0:09:26]} 21. a3 {[%emt 0:09:10]} Kh8 {[%emt 0:04:08]} 22. Ba2 {[%emt 0:05:53]} Rd7 {[%emt 0:01:46]} 23. e4 $14 {[%emt 0:01:47]} fxe4 {[%emt 0:07:45]} 24. Nxe4 {[%emt 0:00:37]} d4 {[%emt 0:01:18]} 25. Nd6 {[%emt 0:00:46]} Ne8 {[%emt 0:01:26]} 26. Nxb7 {[%emt 0:01:08]} Qxb7 {[%emt 0:05:16]} 27. Qd3 {[%emt 0:02:38]} Qc6 {[%emt 0:02:18]} 28. Bb1 {[%emt 0:02:38]} g6 {[%emt 0:00:32]} 29. Qxg6 {[%emt 0:01:26]} Qxg6 {[%emt 0:00:07]} 30. Bxg6 {[%emt 0:00:06]} Kg7 {[%emt 0:00:27]} 31. Be4 {[%emt 0:05:19]} Re7 {[%emt 0:03:56]} 32. g4 {[%emt 0:03:53]} Nc7 {[%emt 0:00:58]} 33. Rde1 {[%emt 0:02:52]} c4 {[%emt 0:02:00]} 34. Bc2 {[%emt 0:01:14]} d3 {[%emt 0:00:31]} 35. Bd1 {[%emt 0:00:05]} Rfe8 {[%emt 0:01:07]} 36. Re4 {[%emt 0:02:32]} b5 {[%emt 0:00:32]} 37. Rfe1 {[%emt 0:00:39]} Nd5 {[%emt 0:02:21]} 38. f5 {[%emt 0:02:07]} Kf8 {[%emt 0:00:56]} 39. h4 {[%emt 0:03:23]} d2 {[%emt 0:00:49]} 40. R1e2 {[%emt 0:00:00]} c3 {[%emt 0:00:00]} 41. bxc3 {[%emt 0:12:36]} Nxc3 {[%emt 0:00:39]} 42. e6 {[%emt 0:00:17]} Nxd1 {[%emt 0:13:52]} 43. Rxd2 {[%emt 0:01:06]} Nc3 {[%emt 0:00:06]} 44. Re3 {[%emt 0:01:15]} Na4 {[%emt 0:07:40]} 45. g5 {[%emt 0:01:52]} hxg5 {[%emt 0:00:55]} 46. hxg5 {[%emt 0:00:13]} Nc5 {[%emt 0:01:02]} 47. Rh2 {[%emt 0:06:36]} Rg7 {[%emt 0:01:57]} 48. Rg2 {[%emt 0:03:07]} Nxe6 {[%emt 0:03:44]} 49. fxe6 {[%emt 0:02:12]} Rg6 {[%emt 0:00:10]} 50. Rf2+ {[%emt 0:02:51]} Kg8 {[%emt 0:00:22]} 51. e7 {[%emt 0:02:01]} Rxg5+ {[%emt 0:00:14]} 52. Kf1 {[%emt 0:00:14]} Rg7 {[%emt 0:00:52]} 53. Rfe2 {[%emt 0:02:04]} Kf7 {[%emt 0:01:09]} 54. Ke1 {[%emt 0:00:53]} a5 {[%emt 0:00:46]} 55. Kd2 {[%emt 0:00:53]} b4 {[%emt 0:00:05]} 56. axb4 {[%emt 0:03:46]} axb4 {[%emt 0:00:05]} 57. Kc2 {[%emt 0:00:06]} Rc8+ {[%emt 0:00:45]} 58. Kb3 {[%emt 0:00:21]} Ke8 {[%emt 0:00:22]} 59. Rh2 {[%emt 0:01:10]} Rc3+ {[%emt 0:00:17]} 1/2-1/2

[Event "POL-chT 2nd League-4 2020"]
[Site "Poronin"]
[Date "2020.09.13"]
[Round "9.23"]
[White "Szydelko, Michal"]
[Black "Palacki, Rafal"]
[Result "1/2-1/2"]
[ECO "B13"]
[WhiteElo "1877"]
[BlackElo "1806"]
[Annotator "NA"]
[PlyCount "30"]
[EventDate "2020.09.05"]
[EventType "team-tourn"]
[EventCountry "POL"]
[SourceTitle "playchess.com"]
[Source "ChessBase"]
[SourceQuality "1"]
[TimeControl "40/5400+30:900+30"]

1. e4 {[%emt 0:00:00]} c6 {[%emt 0:00:00]} 2. d4 {[%emt 0:00:00]} d5 {[%emt 0:00:00]} 3. exd5 {[%emt 0:00:40]} cxd5 {[%emt 0:00:00]} 4. Bd3 {[%emt 0:00:34]} Nc6 {[%emt 0:00:09]} 5. c3 {[%emt 0:00:31]} g6 {[%emt 0:00:08]} 6. Nf3 {[%emt 0:01:31]} Bg4 {[%emt 0:00:18]} 7. h3 {[%emt 0:01:20]} Bxf3 {[%emt 0:00:05]} 8. Qxf3 {[%emt 0:00:05]} Bg7 {[%emt 0:00:13]} 9. Bf4 {[%emt 0:03:17]} Nf6 {[%emt 0:00:42]} 10. O-O {[%emt 0:01:04]} O-O {[%emt 0:00:17]} 11. Nd2 {[%emt 0:02:51]} Re8 {[%emt 0:01:08]} 12. Rfe1 {[%emt 0:08:02]} Qb6 {[%emt 0:01:52]} 13. Nb3 {[%emt 0:03:50]} a5 {[%emt 0:01:02]} 14. Rab1 {[%emt 0:00:51]} a4 {[%emt 0:03:56]} 15. Nd2 {[%emt 0:11:58]} Rac8 $14 {[%emt 0:01:47]} 1/2-1/2

[Event "POL-chT 2nd League-4 2020"]
[Site "Poronin"]
[Date "2020.09.13"]
[Round "9.24"]
[White "Krzysztynska, Anna"]
[Black "Trusz, Julia"]
[Result "1/2-1/2"]
[ECO "B23"]
[WhiteElo "1867"]
[BlackElo "1675"]
[Annotator "NA"]
[PlyCount "43"]
[EventDate "2020.09.05"]
[EventType "team-tourn"]
[EventCountry "POL"]
[SourceTitle "playchess.com"]
[Source "ChessBase"]
[SourceQuality "1"]
[TimeControl "40/5400+30:900+30"]

1. e4 c5 2. Nc3 e6 3. g3 d5 4. exd5 exd5 $11 5. Bg2 Nf6 6. Nf3 d4 7. Ne2 Bd6 8. d3 Nc6 9. O-O O-O 10. Bf4 Bf5 11. Qd2 Re8 12. Rfe1 Bg6 13. a3 h6 14. h3 Qc7 15. Bxd6 Qxd6 16. Nf4 Bh7 17. Rxe8+ Rxe8 18. Re1 Qd7 19. Kh2 Re7 20. Rxe7 Qxe7 21. Qe1 Kf8 22. Qd1 1/2-1/2